bitfinex-derivatives/quotes_SOLF0:USTF0_20250630
["timestamp","ask_amount","ask_price","bid_price","bid_amount"]
[1751295947429,5.87971156,151.85,151.8,40.18]
[1751295947629,5.87971156,151.85,151.79,592.4]
[1751295947933,5.87971156,151.86,151.8,40.18]
[1751295948436,6.5839,151.85,151.82,6.5849]
[1751295948935,5.87971156,151.86,151.83,6.5845]
[1751295949136,5.87971156,151.88,151.8,40.18]
[1751295949641,6.5831,151.87,151.84,6.584]
[1751295950026,6.5831,151.87,151.8,40.18]
[1751295950232,6.5835,151.86,151.83,6.5846]
[1751295951642,5.87971156,151.89,151.84,6.584]
[1751295951839,5.87971156,151.93,151.84,40.2]
[1751295952044,6.5816,151.91,151.87,6.5828]
[1751295952345,5.87971156,151.93,151.87,6.5828]
[1751295952645,5.87971156,151.91,151.85,2.2992]
[1751295953142,5.87971156,151.91,151.86,6.5832]
[1751295953343,5.87971156,151.91,151.85,2.2992]
[1751295953538,6.5832,151.87,151.82,6.5851]
[1751295953740,5.87971156,151.87,151.81,40.2]
[1751295954737,6.5851,151.83,151.81,40.2]
[1751295954934,5.87971156,151.85,151.81,40.2]
[1751295955139,6.5854,151.82,151.8,6.837]
[1751295955336,40.2,151.88,151.8,6.837]
[1751295955548,5.87971156,151.86,151.8,6.837]
[1751295955750,6.585,151.83,151.8,6.837]
[1751295956048,5.87971156,151.86,151.8,6.837]
[1751295956542,5.87971156,151.84,151.8,2.2992]
[1751295957548,6.5854,151.82,151.8,2.2992]
[1751295957940,40.2,151.88,151.8,2.2992]
[1751295958147,5.87971156,151.86,151.8,2.2992]
[1751295958452,6.5846,151.84,151.8,2.2992]
[1751295958843,5.87971156,151.86,151.8,8.8851]
[1751295959650,6.5846,151.84,151.8,8.8851]
[1751295959842,6.5846,151.84,151.81,6.5855]
[1751295960043,6.1273535,151.9,151.82,40.2]
[1751295960248,6.1273535,151.94,151.82,46.08873487]
[1751295960552,5.88873487,151.91,151.82,40.2]
[1751295960739,6.5828,151.88,151.82,40.2]
[1751295960939,5.88873487,151.9,151.82,40.2]
[1751295961153,12.47073487,151.9,151.82,40.2]
[1751295961543,12.47073487,151.9,151.86,6.5832]
[1751295961946,6.5816,151.91,151.87,6.5828]
[1751295962250,5.88529555,151.93,151.86,40.2]
[1751295962450,5.88529555,151.93,151.87,42.3972]
[1751295962647,6.582,151.9,151.87,48.98]
[1751295963042,5.88529555,151.93,151.87,42.3972]
[1751295963750,6.582,151.9,151.87,48.9802]
[1751295963944,5.88529555,151.93,151.87,42.3972]
[1751295964149,6.5825,151.89,151.87,42.3972]
[1751295964349,5.88529555,151.89,151.79,598.47212912]
[1751295964541,5.88529555,151.87,151.8,42.4188]
[1751295964852,5.88529555,151.85,151.8,42.4188]
[1751295965049,12.01264905,151.9,151.8,42.4188]
[1751295965254,6.5837,151.86,151.82,6.585]
[1751295965556,46.3273535,151.92,151.8,42.4188]
[1751295965557,5.88529555,151.89,151.8,42.4188]
[1751295966053,6.583,151.88,151.8,42.4188]
[1751295966453,6.583,151.88,151.84,6.584]
[1751295966658,5.88529555,151.91,151.84,39.92]
[1751295966853,5.88529555,151.91,151.85,4.4754]
[1751295967045,5.88529555,151.91,151.87,6.5829]
[1751295967546,12.46679555,151.91,151.87,6.5829]
[1751295967746,6.5815,151.91,151.87,6.5827]
[1751295967951,5.88529555,151.93,151.86,2.2456]
[1751295968163,6.582,151.9,151.86,2.2456]
[1751295968450,5.88529555,151.93,151.86,8.8288]
[1751295969058,6.5822,151.89,151.86,8.8288]
[1751295969353,5.88529555,151.91,151.86,8.8288]
[1751295969657,6.5822,151.89,151.86,8.8288]
[1751295970163,6.5822,151.89,151.86,2.2456]
[1751295970456,6.5829,151.88,151.86,2.2456]
[1751295970655,5.88529555,151.91,151.86,2.2456]
[1751295970956,6.5824,151.89,151.86,2.2456]
[1751295971453,6.1273535,151.94,151.86,2.2456]
[1751295971754,5.88529555,151.91,151.86,2.2456]
[1751295972856,6.5824,151.89,151.86,2.2456]
[1751295973157,5.88529555,151.92,151.86,2.2456]
[1751295973858,5.88529555,151.9,151.86,2.2456]
[1751295974063,5.88529555,151.88,151.83,39.92]
[1751295974360,27.98209183,151.95,151.83,39.92]
[1751295974361,5.88529555,151.86,151.83,39.92]
[1751295974660,5.88529555,151.86,151.83,46.5045]
[1751295975253,12.46899555,151.86,151.83,39.92]
[1751295975454,46.0473535,151.92,151.83,39.92]
[1751295975657,6.5841,151.85,151.83,39.92]
[1751295975855,5.88529555,151.86,151.83,39.92]
[1751295976257,6.5841,151.85,151.83,39.92]
[1751295976457,6.1273535,151.93,151.83,39.92]
[1751295976650,5.88529555,151.9,151.83,39.92]
[1751295976854,6.5837,151.86,151.83,39.92]
[1751295977055,5.88529555,151.86,151.83,39.92]
[1751295977660,6.5842,151.85,151.83,39.92]
[1751295978157,6.1273535,151.92,151.83,39.92]
[1751295978357,6.1273535,151.93,151.83,39.92]
[1751295978761,6.5816,151.91,151.87,6.5828]
[1751295978959,6.1273535,151.93,151.87,6.5828]
[1751295979156,6.1273535,151.94,151.87,6.5828]
[1751295979358,6.5819,151.9,151.87,6.5828]
[1751295979557,6.5819,151.9,151.86,6.5832]
[1751295979756,6.1273535,151.94,151.86,6.5832]
[1751295979950,5.8857299,151.91,151.85,6.5837]
[1751295980149,5.8857299,151.89,151.83,39.92]
[1751295980355,5.89119826,151.84,151.8,6.7353]
[1751295980555,5.89119826,151.84,151.8,13.3211]
[1751295980954,6.5848,151.83,151.8,13.3211]
[1751295981256,12.01855176,151.91,151.8,6.7353]
[1751295981455,5.89119826,151.91,151.81,5.89119826]
[1751295981651,5.89119826,151.91,151.85,6.5836]
[1751295981857,5.89119826,151.91,151.85,39.92]
[1751295982560,6.582,151.9,151.85,39.92]
[1751295982959,6.582,151.9,151.86,6.5832]
[1751295984060,6.582,151.9,151.87,6.583]
[1751295984460,6.5822,151.89,151.86,6.5833]
[1751295985857,6.5822,151.89,151.85,39.92]
[1751295985858,5.89119826,151.89,151.85,39.92]
[1751295986053,5.89119826,151.87,151.82,39.92]
[1751295986254,6.5837,151.86,151.83,6.5845]
[1751295986458,5.89119826,151.87,151.82,39.92]
[1751295986760,6.5846,151.84,151.82,39.92]
[1751295987255,6.5848,151.83,151.82,39.92]
[1751295987662,5.89119826,151.85,151.8,2.1617]
[1751295987859,6.5856,151.82,151.8,2.1617]
[1751295988059,5.89119826,151.85,151.8,2.1617]
[1751295988363,6.5854,151.82,151.8,2.1617]
[1751295988563,6.5854,151.82,151.79,46.5063]
[1751295989559,5.89164413,151.82,151.79,39.92]
[1751295990064,6.5861,151.8,151.79,39.92]
[1751295990466,6.5861,151.8,151.77,6.5871]
[1751295991166,5.89164413,151.8,151.76,2.54583]
[1751295991656,5.89164413,151.78,151.76,2.54583]
[1751295992558,6.5874,151.77,151.76,2.54583]
[1751295993167,6.5884,151.75,151.71,4.2315]
[1751295993370,12.48004413,151.75,151.7,39.92]
[1751295993670,12.48004413,151.75,151.71,6.5897]
[1751295993861,6.589,151.74,151.69,39.92]
[1751295994265,6.5891,151.73,151.69,39.92]
[1751295994464,5.89164413,151.75,151.69,39.92]
[1751295994766,6.5889,151.74,151.7,6.5903]
[1751295995667,12.48004413,151.75,151.71,6.5896]
[1751295995864,5.89164413,151.77,151.69,39.92]
[1751295996367,6.5885,151.75,151.71,6.5896]
[1751295996565,5.89164413,151.75,151.69,39.92]
[1751295997265,6.5887,151.74,151.7,6.5902]
[1751295997570,5.89164413,151.75,151.69,39.92]
[1751295997763,6.5876,151.77,151.73,6.5888]
[1751295997958,5.89164413,151.77,151.69,39.92]
[1751295998158,5.89164413,151.79,151.69,39.92]
[1751295998359,6.5875,151.77,151.73,6.5888]
[1751295998658,39.68,151.8,151.73,39.68]
[1751295998863,6.587,151.78,151.75,6.5882]
[1751295999071,6.587,151.78,151.73,39.68]
[1751295999768,6.5874,151.77,151.73,39.68]
[1751295999969,5.89164413,151.79,151.73,46.2687]
[1751296000365,6.5876,151.77,151.73,39.68]
[1751296000667,5.89164413,151.75,151.7,39.68]
[1751296000862,5.89164413,151.73,151.68,2.2058]
[1751296001064,5.89164413,151.71,151.67,39.68]
[1751296001467,6.5907,151.7,151.67,39.68]
[1751296001669,5.89164413,151.71,151.68,6.5912]
[1751296002168,12.48184413,151.71,151.68,6.5912]
[1751296002567,12.48184413,151.71,151.67,46.2715]
[1751296003070,6.5905,151.7,151.67,46.2715]
[1751296003669,12.48174413,151.71,151.67,46.2715]
[1751296004067,5.89164413,151.71,151.66,6.5919]
[1751296004374,6.5909,151.69,151.63,6.6846]
[1751296004666,5.89164413,151.69,151.63,6.6846]
[1751296004877,12.48284413,151.69,151.63,6.6846]
[1751296005177,5.89164413,151.69,151.63,6.6846]
[1751296005863,12.48264413,151.69,151.63,6.6846]
[1751296006770,13.175,151.77,151.65,5.89164413]
[1751296006771,5.89164413,151.75,151.65,5.89164413]
[1751296007069,5.89164413,151.75,151.66,39.7]
[1751296007274,6.5898,151.72,151.7,6.5903]
[1751296007473,5.89164413,151.75,151.7,6.5903]
[1751296008075,6.5894,151.73,151.7,6.5903]
[1751296009175,5.89164413,151.71,151.66,39.7]
[1751296009578,6.5907,151.7,151.66,39.7]
[1751296009875,6.5907,151.7,151.67,6.5914]
[1751296010077,12.48174413,151.71,151.66,39.7]
[1751296010377,12.48174413,151.71,151.68,6.591]
[1751296011378,5.89164413,151.71,151.69,6.5907]
[1751296011678,5.89164413,151.76,151.66,45.59164413]
[1751296011978,39.7,151.84,151.72,5.89164413]
[1751296012174,41.9397,151.85,151.74,5.89164413]
[1751296012472,5.89164413,151.84,151.75,39.7]
[1751296012676,5.89164413,151.84,151.75,49.99464413]
[1751296012971,41.9397,151.85,151.73,2.2434]
[1751296013171,5.89164413,151.8,151.74,39.7]
[1751296013373,5.89164413,151.83,151.78,6.5865]
[1751296013774,9.84859281,151.84,151.78,6.5865]
[1751296014175,9.84859281,151.84,151.79,6.5864]
[1751296014782,9.84859281,151.84,151.78,6.5868]
[1751296014979,9.84859281,151.84,151.74,39.7]
[1751296015280,6.5854,151.82,151.79,6.5865]
[1751296016183,9.84859281,151.84,151.74,39.7]
[1751296016684,6.5856,151.81,151.74,39.7]
[1751296016878,9.84859281,151.84,151.74,39.7]
[1751296017481,6.5863,151.8,151.74,39.7]
[1751296017878,9.84859281,151.84,151.74,39.7]
[1751296018487,9.84859281,151.84,151.76,6.5875]
[1751296019188,9.84859281,151.84,151.74,39.7]
[1751296019379,41.9397,151.85,151.74,49.54859281]
[1751296019683,6.5851,151.83,151.74,49.54859281]
[1751296019882,6.5851,151.83,151.79,6.5862]
[1751296020079,6.5851,151.83,151.74,49.54859281]
[1751296020080,9.84859281,151.86,151.78,39.68]
[1751296020278,2.1522,151.88,151.78,49.52859281]
[1751296020584,9.84859281,151.87,151.79,6.8386]
[1751296020783,49.52859281,151.87,151.79,2.3154]
[1751296020986,6.5859,151.81,151.78,46.2666]
[1751296021490,6.5854,151.82,151.78,46.2666]
[1751296021792,6.5854,151.82,151.78,39.68]
[1751296022283,9.84859281,151.84,151.78,39.68]
[1751296022488,9.84859281,151.81,151.75,39.68]
[1751296022687,6.5869,151.79,151.75,46.268]
[1751296022889,9.84859281,151.81,151.75,39.68]
[1751296023286,6.5872,151.78,151.75,46.2682]
[1751296023485,9.84859281,151.78,151.73,2.2842]
[1751296023681,6.5876,151.77,151.73,6.5888]
[1751296023892,9.84859281,151.78,151.72,39.68]
[1751296024790,6.588,151.76,151.72,46.2693]
[1751296025089,6.588,151.76,151.72,39.68]
[1751296025480,2.1421,151.8,151.72,39.68]
[1751296025792,9.84859281,151.8,151.72,39.68]
[1751296026090,51.70839281,151.83,151.72,39.68]
[1751296026390,6.5863,151.8,151.77,6.5873]
[1751296026593,51.70839281,151.83,151.77,6.5873]
[1751296027086,6.586,151.81,151.77,6.5873]
[1751296027292,51.70839281,151.83,151.72,39.68]
[1751296027592,6.5862,151.8,151.72,39.68]
[1751296027890,51.70839281,151.83,151.75,6.588]
[1751296028191,51.70839281,151.83,151.72,39.68]
[1751296028393,51.70839281,151.83,151.74,6.5884]
[1751296029282,6.5872,151.78,151.74,6.5884]
[1751296029593,51.70839281,151.83,151.75,6.5881]
[1751296029983,6.5868,151.79,151.75,6.5879]
[1751296030388,6.5864,151.8,151.72,39.68]
[1751296030688,9.84859281,151.8,151.72,39.68]
[1751296031193,9.84859281,151.77,151.69,43.8009]
[1751296031593,6.5885,151.75,151.69,43.8009]
[1751296032381,6.5885,151.75,151.72,6.5893]
[1751296033089,6.5889,151.74,151.71,6.5898]
[1751296034096,6.5889,151.74,151.72,6.5894]
[1751296034301,6.5885,151.75,151.72,6.5894]
[1751296035192,6.5885,151.75,151.69,43.8009]
[1751296035396,9.84859281,151.8,151.69,43.8009]
[1751296035794,6.5878,151.76,151.69,49.69640654]
[1751296035996,5.89550654,151.79,151.69,49.69640654]
[1751296036396,6.5883,151.75,151.69,49.69640654]
[1751296036596,5.89550654,151.79,151.69,49.69640654]
[1751296037100,6.5876,151.77,151.74,6.5883]
[1751296037305,6.5876,151.77,151.73,39.42]
[1751296037496,5.89550654,151.79,151.73,39.42]
[1751296037692,5.89550654,151.81,151.73,39.42]
[1751296037997,8.07530654,151.83,151.73,39.42]
[1751296038198,6.5864,151.8,151.74,2.2418]
[1751296038399,6.5864,151.8,151.75,2.2088]
[1751296038598,8.07530654,151.83,151.75,2.2088]
[1751296039003,5.89550654,151.83,151.75,2.2088]
[1751296039400,5.89550654,151.81,151.75,2.2088]
[1751296039599,41.7056,151.85,151.75,2.2088]
[1751296039801,5.89550654,151.83,151.75,2.2088]
[1751296040901,6.5868,151.79,151.75,2.2088]
[1751296041401,6.5868,151.79,151.76,6.5876]
[1751296041605,5.89550654,151.81,151.74,2.2418]
[1751296041904,5.89550654,151.79,151.73,39.42]
[1751296042500,5.89550654,151.79,151.75,6.5882]
[1751296042697,6.5873,151.78,151.75,6.5882]
[1751296042904,41.7056,151.85,151.76,6.5875]
[1751296043107,5.89550654,151.8,151.73,39.42]
[1751296043804,5.89550654,151.76,151.73,39.42]
[1751296044209,6.5889,151.74,151.71,6.5898]
[1751296044911,5.89550654,151.76,151.7,41.7215]
[1751296045111,5.89550654,151.78,151.7,41.7215]
[1751296045405,6.5881,151.76,151.73,6.5889]
[1751296046916,6.5884,151.75,151.72,6.5893]
[1751296047508,5.89550654,151.76,151.7,41.7215]
[1751296048214,2.31,151.82,151.7,41.7215]
[1751296048407,45.31550654,151.81,151.71,5.89550654]
[1751296048715,5.89550654,151.81,151.7,41.7215]
[1751296048915,5.89550654,151.81,151.7,47.61700654]
[1751296049115,6.5872,151.78,151.75,6.588]
[1751296049312,6.5872,151.78,151.74,39.42]
[1751296049817,6.5872,151.78,151.75,6.5879]
[1751296050617,6.5868,151.79,151.76,6.5877]
[1751296051211,6.5872,151.78,151.76,6.5877]
[1751296051413,5.89550654,151.81,151.75,6.588]
[1751296053017,6.5869,151.79,151.75,6.588]
[1751296053317,5.89550654,151.81,151.75,6.588]
[1751296053514,6.5891,151.74,151.71,39.42]
[1751296053817,5.89550654,151.72,151.68,39.42]
[1751296054020,5.89550654,151.72,151.68,46.0111]
[1751296054316,5.89550654,151.7,151.68,39.42]
[1751296054716,6.5909,151.69,151.65,41.739]
[1751296054917,5.89550654,151.7,151.65,41.739]
[1751296055213,6.592,151.67,151.64,6.5927]
[1751296055521,6.592,151.67,151.62,39.42]
[1751296055714,12.48700654,151.68,151.62,39.42]
[1751296055914,5.89550654,151.68,151.62,39.42]
[1751296056318,5.89550654,151.68,151.64,6.5928]
[1751296056619,12.48710654,151.68,151.62,39.42]
[1751296057114,6.5918,151.67,151.62,39.42]
[1751296057525,5.89550654,151.68,151.62,39.42]
[1751296057921,5.89550654,151.66,151.62,39.42]
[1751296058220,2.3385,151.71,151.62,39.42]
[1751296058418,5.89550654,151.69,151.62,39.42]
[1751296058825,6.5919,151.67,151.64,6.5928]
[1751296059725,6.5922,151.66,151.63,6.5933]
[1751296060625,6.5922,151.66,151.64,6.593]
[1751296060825,6.5922,151.66,151.62,39.42]
[1751296061028,12.48740654,151.67,151.62,39.42]
[1751296061322,5.89550654,151.67,151.62,39.42]
[1751296061522,5.89550654,151.63,151.58,2.2584]
[1751296061825,5.89550654,151.61,151.56,39.12]
[1751296062022,39.12,151.64,151.55,4.3827]
[1751296062214,5.89550654,151.61,151.55,4.3827]
[1751296062424,6.5955,151.59,151.55,2.2279]
[1751296062818,5.89550654,151.61,151.56,6.5963]
[1751296063025,6.595,151.6,151.56,6.5963]
[1751296063724,6.595,151.6,151.57,6.5959]
[1751296063915,5.89550654,151.61,151.55,2.2279]
[1751296064114,4.6102,151.65,151.55,8.12340654]
[1751296064824,6.5936,151.63,151.6,6.5945]
[1751296065924,6.5936,151.63,151.61,6.5943]
[1751296066117,4.6102,151.65,151.58,39.12]
[1751296066321,5.89550654,151.66,151.58,39.12]
[1751296066522,5.89550654,151.66,151.63,6.5934]
[1751296066824,5.89550654,151.68,151.59,8.08630654]
[1751296067028,5.89550654,151.7,151.59,10.30430654]
[1751296067226,5.89550654,151.7,151.61,5.89550654]
[1751296067426,6.5911,151.69,151.62,41.3917]
[1751296067628,6.5911,151.69,151.66,6.5919]
[1751296068027,6.5913,151.68,151.66,6.5919]
[1751296068227,5.89550654,151.7,151.62,41.3917]
[1751296069024,5.89550654,151.72,151.62,41.3917]
[1751296069234,5.89550654,151.72,151.63,5.89550654]
[1751296069434,12.48540654,151.72,151.69,6.5907]
[1751296069820,5.89550654,151.72,151.67,39.12]
[1751296070029,6.5903,151.71,151.68,6.5911]
[1751296070226,5.89550654,151.73,151.67,39.12]
[1751296070626,6.5902,151.71,151.68,6.5911]
[1751296070944,5.89550654,151.73,151.67,39.12]
[1751296071125,5.89550654,151.73,151.7,6.5904]
[1751296071321,5.89550654,151.75,151.7,6.5904]
[1751296071530,6.5892,151.73,151.7,6.5904]
[1751296071730,5.89550654,151.75,151.71,6.5899]
[1751296072130,8.11669183,151.82,151.66,4.4684]
[1751296072436,41.4582,151.89,151.76,5.89550654]
[1751296072626,5.89550654,151.87,151.77,45.7212]
[1751296073031,6.5844,151.84,151.77,45.7212]
[1751296073330,5.89550654,151.85,151.77,45.7212]
[1751296073929,6.5844,151.84,151.77,45.7212]
[1751296074128,41.4582,151.89,151.77,45.7212]
[1751296074331,5.89550654,151.87,151.77,51.61670654]
[1751296075135,6.5838,151.86,151.8,6.5861]
[1751296075335,5.89550654,151.87,151.77,51.61670654]
[1751296075532,12.47970654,151.85,151.78,6.5868]
[1751296075728,5.89550654,151.85,151.77,45.7212]
[1751296075937,5.89550654,151.83,151.77,45.7212]
[1751296076124,5.89550654,151.83,151.77,39.12]
[1751296076326,5.89550654,151.81,151.74,39.12]
[1751296076535,5.89550654,151.79,151.74,39.12]
[1751296076837,6.5873,151.78,151.74,39.12]
[1751296077037,5.89550654,151.78,151.74,39.12]
[1751296077237,6.5875,151.77,151.71,45.7099]
[1751296077436,5.89550654,151.78,151.71,39.12]
[1751296078441,6.5878,151.76,151.72,6.5895]
[1751296078636,5.89550654,151.78,151.71,39.12]
[1751296078940,5.89550654,151.79,151.71,39.12]
[1751296079435,6.5879,151.76,151.72,6.5895]
[1751296079639,5.89550654,151.77,151.71,39.12]
[1751296079834,6.5894,151.73,151.69,6.5908]
[1751296080032,5.89550654,151.75,151.67,632.5]
[1751296080233,5.89550654,151.75,151.67,638.39550654]
[1751296080428,6.5874,151.77,151.73,6.5888]
[1751296080836,5.89550654,151.8,151.71,39.1]
[1751296081037,39.12,151.81,151.72,2.1475]
[1751296081236,45.01550654,151.81,151.73,2.3408]
[1751296081636,6.7939,151.84,151.74,2.2126]
[1751296081833,5.89550654,151.83,151.75,39.1]
[1751296082033,44.99550654,151.84,151.75,39.1]
[1751296082632,6.5857,151.81,151.75,39.1]
[1751296082830,6.5857,151.81,151.75,44.99550654]
[1751296083027,6.5853,151.82,151.79,6.5864]
[1751296083237,6.5853,151.82,151.75,44.99550654]
[1751296083437,44.99550654,151.84,151.75,44.99550654]
[1751296083636,44.99550654,151.84,151.79,6.5862]
[1751296083829,5.89550654,151.84,151.79,6.5862]
[1751296084231,6.5849,151.83,151.79,6.5862]
[1751296084438,39.1,151.86,151.77,5.89550654]
[1751296084839,39.1,151.86,151.8,6.5858]
[1751296085035,5.89550654,151.85,151.8,6.5858]
[1751296085339,6.5851,151.83,151.8,6.5858]
[1751296085742,6.5845,151.84,151.81,6.5856]
[1751296086446,6.5849,151.83,151.8,6.5858]
[1751296086645,5.89550654,151.85,151.8,6.5858]
[1751296086838,5.89550654,151.85,151.79,39.1]
[1751296087344,6.5846,151.84,151.79,39.1]
[1751296087536,5.89550654,151.83,151.76,39.1]
[1751296088144,5.89550654,151.81,151.74,2.2126]
[1751296088448,6.5869,151.79,151.74,2.2126]
[1751296088746,5.89550654,151.81,151.74,2.2126]
[1751296089344,38.84,151.82,151.74,2.2126]
[1751296089645,6.5867,151.79,151.75,6.5879]
[1751296089843,5.89550654,151.8,151.75,6.5879]
[1751296090543,5.89550654,151.8,151.74,2.2126]
[1751296090544,6.5874,151.77,151.74,8.8012]
[1751296090747,5.89550654,151.76,151.7,38.84]
[1751296091942,12.48360654,151.76,151.7,38.84]
[1751296092144,5.89550654,151.76,151.7,38.84]
[1751296093144,44.73550654,151.78,151.7,38.84]
[1751296093747,5.89550654,151.81,151.71,5.89550654]
[1751296093943,5.89550654,151.84,151.75,5.89550654]
[1751296094144,5.89550654,151.84,151.8,6.5858]
[1751296094548,5.89550654,151.84,151.76,45.4898]
[1751296094745,6.5854,151.82,151.79,6.5863]
[1751296095245,6.5854,151.82,151.8,6.586]
[1751296095646,6.5849,151.83,151.8,6.586]
[1751296096750,5.89550654,151.84,151.76,45.4898]
[1751296096951,5.89550654,151.82,151.76,45.4898]
[1751296097248,5.89550654,151.82,151.78,6.5867]
[1751296097444,5.89550654,151.82,151.76,45.4898]
[1751296097639,6.5863,151.8,151.76,45.4898]
[1751296097838,5.89550654,151.82,151.76,52.0774]
[1751296098045,5.89550654,151.82,151.76,45.4898]
[1751296098249,6.5863,151.8,151.76,45.4898]
[1751296098451,6.5863,151.8,151.77,6.5871]
[1751296098652,5.89550654,151.82,151.76,45.4898]
[1751296098948,5.89550654,151.84,151.76,45.4898]
[1751296099149,38.84,151.85,151.76,51.38530654]
[1751296099349,6.5852,151.83,151.8,6.586]
[1751296099649,38.84,151.85,151.76,45.4898]
[1751296100251,6.5849,151.83,151.8,6.5858]
[1751296100450,38.84,151.85,151.8,6.5858]
[1751296100851,38.84,151.85,151.76,45.4898]
[1751296100852,5.89550654,151.84,151.76,45.4898]
[1751296101448,6.5855,151.82,151.79,6.5863]
[1751296102052,6.5858,151.81,151.79,6.5863]
[1751296102254,5.89550654,151.84,151.78,6.5867]
[1751296102454,5.89550654,151.82,151.76,45.4898]
[1751296102847,6.5858,151.81,151.78,6.5867]
[1751296103153,5.89550654,151.84,151.76,45.4898]
[1751296103355,12.48010654,151.84,151.81,6.5854]
[1751296103552,6.5846,151.84,151.81,6.5854]
[1751296104454,44.73550654,151.85,151.76,45.4898]
[1751296104655,5.89550654,151.83,151.76,45.4898]
[1751296105349,12.48060654,151.83,151.76,45.4898]
[1751296105549,12.48060654,151.83,151.8,6.5858]
[1751296105956,6.5845,151.84,151.81,6.5854]
[1751296106155,44.73550654,151.85,151.76,45.4898]
[1751296106549,44.73550654,151.85,151.79,6.5862]
[1751296106853,44.73550654,151.85,151.76,45.4898]
[1751296107256,44.73550654,151.85,151.8,6.5859]
[1751296107654,6.5851,151.83,151.81,6.5856]
[1751296108057,44.73550654,151.85,151.76,45.4898]
[1751296108356,5.89550654,151.85,151.76,45.4898]
[1751296108752,6.5844,151.84,151.77,5.89550654]
[1751296109353,44.71550654,151.88,151.77,5.89550654]
[1751296109854,5.89550654,151.86,151.77,5.89550654]
[1751296110456,6.5844,151.84,151.77,5.89550654]
[1751296110759,5.89550654,151.86,151.77,5.89550654]
[1751296110959,6.584,151.85,151.77,5.89550654]
[1751296111355,5.89550654,151.87,151.77,5.89550654]
[1751296113062,6.5843,151.84,151.82,6.585]
[1751296113354,5.89550654,151.85,151.8,38.82]
[1751296113559,5.89550654,151.85,151.78,38.82]
[1751296113761,6.5851,151.83,151.8,6.5858]
[1751296113954,5.89550654,151.85,151.8,6.5858]
[1751296114154,6.5854,151.82,151.8,6.5858]
[1751296114360,5.89550654,151.85,151.81,6.5856]
[1751296114755,6.5851,151.83,151.8,6.5859]
[1751296115260,46.93669183,151.94,151.81,5.8866872]
[1751296115461,5.8866872,151.91,151.82,38.82]
[1751296115856,6.5824,151.89,151.85,6.5835]
[1751296116155,6.5824,151.89,151.82,38.82]
[1751296117060,6.5827,151.88,151.86,6.5833]
[1751296117264,5.8866872,151.91,151.82,38.82]
[1751296117760,6.5824,151.89,151.86,6.583]
[1751296118258,6.5821,151.9,151.82,38.82]
[1751296118458,5.8866872,151.92,151.83,4.5199]
[1751296118660,5.8866872,151.92,151.83,6.8046]
[1751296118861,6.5815,151.91,151.88,6.5822]
[1751296119058,38.82,151.94,151.84,5.8866872]
[1751296119259,38.82,151.94,151.9,6.5815]
[1751296119260,6.5808,151.93,151.9,6.5815]
[1751296119460,38.82,151.94,151.86,38.58]
[1751296119963,5.8866872,152.0,151.9,5.8866872]
[1751296120154,38.58,152.02,151.9,5.8866872]
[1751296120155,38.58,152.02,151.91,38.58]
[1751296120358,6.5784,151.98,151.95,6.5793]
[1751296120565,5.8866872,152.01,151.91,45.3425]
[1751296121056,5.8866872,151.99,151.91,51.9236]
[1751296121260,5.8866872,151.99,151.91,45.3425]
[1751296121461,5.8866872,151.99,151.91,51.9238]
[1751296122069,6.5789,151.97,151.91,51.9238]
[1751296122365,5.8866872,151.99,151.91,51.9238]
[1751296122759,5.8866872,151.97,151.91,45.3425]
[1751296122960,5.8866872,151.95,151.91,38.58]
[1751296123165,5.8866872,151.93,151.88,38.58]
[1751296123365,5.8866872,152.0,151.85,2.2748]
[1751296123366,5.8866872,151.89,151.85,2.2748]